bitfinex-derivatives/quotes_SOLF0:USTF0_20250907
["timestamp","ask_amount","ask_price","bid_price","bid_amount"]
[1757275641144,7.59,203.33,203.3,1.95186474]
[1757275641337,0.031878,203.34,203.3,1.95186474]
[1757275641744,7.59,203.33,203.3,1.95186474]
[1757275641944,0.031878,203.34,203.3,1.95186474]
[1757275642144,7.59,203.33,203.3,1.95186474]
[1757275642946,0.031878,203.34,203.29,5.14]
[1757275643243,7.59,203.33,203.29,5.14]
[1757275643444,0.031878,203.34,203.3,1.95186474]
[1757275643642,7.59,203.33,203.3,1.95186474]
[1757275644142,0.031878,203.34,203.3,1.95186474]
[1757275644538,7.59,203.33,203.3,1.95186474]
[1757275644743,0.031878,203.34,203.3,1.95186474]
[1757275645247,7.59,203.33,203.3,1.95186474]
[1757275645747,0.031878,203.34,203.3,1.95186474]
[1757275646339,7.59,203.33,203.3,1.95186474]
[1757275646540,7.59,203.33,203.24,5.14]
[1757275646744,7.59,203.33,203.26,1.95186474]
[1757275646947,1.95186474,203.32,203.26,1.95186474]
[1757275647148,7.59,203.31,203.26,1.95186474]
[1757275647742,1.98489721,203.32,203.26,1.95186474]
[1757275647941,7.59,203.31,203.26,1.95186474]
[1757275648248,1.98489721,203.32,203.26,1.95186474]
[1757275648547,7.59,203.31,203.26,1.95186474]
[1757275648749,1.98489721,203.32,203.24,5.14]
[1757275648949,7.59,203.31,203.25,1.95186474]
[1757275653655,7.59,203.31,203.24,5.14]
[1757275653656,7.59,203.31,203.23,1.95186474]
[1757275653857,1.98489721,203.32,203.22,1.95186474]
[1757275653858,7.59,203.29,203.22,1.95186474]
[1757275654254,0.03758994,203.28,203.22,1.95186474]
[1757275655664,7.52,203.27,203.22,1.95186474]
[1757275655866,7.52,203.27,203.2,1.95186474]
[1757275657067,7.52,203.27,203.19,5.15]
[1757275657268,7.52,203.27,203.2,1.95186474]
[1757275658469,1.95186474,203.26,203.2,1.95186474]
[1757275658771,7.52,203.25,203.2,1.95186474]
[1757275659066,0.03758994,203.28,203.22,1.95186474]
[1757275659364,1.95186474,203.3,203.22,1.95186474]
[1757275659569,7.52,203.29,203.22,1.95186474]
[1757275659773,0.03184412,203.27,203.22,1.95186474]
[1757275660671,7.52,203.26,203.22,1.95186474]
[1757275661266,0.03184412,203.27,203.22,1.95186474]
[1757275661863,7.52,203.26,203.22,1.95186474]
[1757275662369,0.03184412,203.27,203.22,1.95186474]
[1757275662674,7.52,203.26,203.22,1.95186474]
[1757275663872,0.03184412,203.27,203.22,1.95186474]
[1757275664269,7.52,203.26,203.22,1.95186474]
[1757275664770,0.03184412,203.27,203.22,1.95186474]
[1757275664971,7.52,203.26,203.2,7.10186474]
[1757275677482,13.04449451,203.26,203.2,7.10186474]
[1757275680187,14.99635925,203.26,203.2,7.10186474]
[1757275681680,14.99635925,203.26,203.13,359.22]
[1757275681681,14.99635925,203.26,203.13,330.6]
[1757275681987,1.95186474,203.24,203.18,5.15]
[1757275682186,13.04449451,203.25,203.19,1.95186474]
[1757275682386,0.03407736,203.22,203.19,1.95186474]
[1757275682588,0.03407736,203.22,203.2,5.15]
[1757275685282,0.03407736,203.22,203.19,5.16]
[1757275685283,8.07407736,203.22,203.19,5.16]
[1757275693594,8.04,203.21,203.19,5.16]
[1757275693796,8.04,203.21,203.18,5.16]
[1757275694896,0.03407736,203.22,203.18,5.16]
[1757275695195,5.55857187,203.22,203.18,5.16]
[1757275696088,8.04,203.21,203.18,5.16]
[1757275696395,5.55857187,203.22,203.18,5.16]
[1757275696787,8.04,203.21,203.18,5.16]
[1757275696990,5.55857187,203.22,203.18,5.16]
[1757275697194,13.56449451,203.21,203.18,5.16]
[1757275697394,8.04,203.2,203.18,5.16]
[1757275697891,8.04,203.2,203.17,1.95186474]
[1757275698090,5.55857187,203.22,203.17,1.95186474]
[1757275698597,5.55857187,203.22,203.18,5.16]
[1757275698798,5.55857187,203.22,203.17,1.95186474]
[1757275698993,13.59857187,203.22,203.17,1.95186474]
[1757275699197,5.52449451,203.21,203.17,1.95186474]
[1757275699695,5.52449451,203.21,203.18,5.16]
[1757275699890,5.52449451,203.21,203.17,1.95186474]
[1757275700294,5.52449451,203.21,203.16,3.05318806]
[1757275701197,5.52449451,203.21,203.17,5.16]
[1757275701889,5.52449451,203.21,203.16,3.05318806]
[1757275702399,13.56449451,203.21,203.16,3.05318806]
[1757275702795,13.56449451,203.21,203.17,5.16]
[1757275703001,13.56449451,203.21,203.16,3.05318806]
[1757275703602,8.04,203.2,203.17,5.16]
[1757275705403,8.04,203.2,203.16,3.05318806]
[1757275706502,8.04,203.2,203.17,5.16]
[1757275706701,8.04,203.2,203.16,3.05318806]
[1757275706900,8.04,203.2,203.17,5.16]
[1757275708096,5.52449451,203.21,203.17,5.16]
[1757275708297,8.04,203.2,203.17,5.16]
[1757275708498,5.52449451,203.21,203.17,5.16]
[1757275709002,8.04,203.19,203.17,5.16]
[1757275711098,5.52449451,203.21,203.13,3.05318806]
[1757275711304,8.04,203.2,203.14,5.16]
[1757275711808,0.03490246,203.19,203.13,3.05318806]
[1757275712406,8.07490246,203.19,203.13,8.21318806]
[1757275718809,13.59939697,203.19,203.13,8.21318806]
[1757275721112,7.72,203.17,203.14,5.15]
[1757275723808,5.55939697,203.19,203.14,5.15]
[1757275724412,7.72,203.18,203.14,5.15]
[1757275724619,5.55939697,203.19,203.14,5.15]
[1757275725319,7.72,203.18,203.14,5.15]
[1757275725720,13.27939697,203.19,203.13,8.20318806]
[1757275726414,5.55939697,203.19,203.14,5.15]
[1757275726719,0.03490246,203.19,203.14,5.15]
[1757275728417,0.03490246,203.19,203.13,3.05318806]
[1757275728616,7.75490246,203.19,203.14,5.15]
[1757275728918,7.75490246,203.19,203.13,8.20318806]
[1757275730122,13.27939697,203.19,203.13,8.20318806]
[1757275731426,5.55939697,203.19,203.13,3.05318806]
[1757275731921,7.72,203.18,203.15,5.15]
[1757275739630,0.03490246,203.19,203.15,5.15]
[1757275740129,7.72,203.18,203.15,5.15]
[1757275741124,0.03490246,203.19,203.15,5.15]
[1757275741331,7.72,203.18,203.15,5.15]
[1757275741832,0.03490246,203.19,203.13,3.05318806]
[1757275742030,5.55939697,203.19,203.13,3.05318806]
[1757275742231,7.72,203.18,203.12,5.15]
[1757275742428,5.52449451,203.17,203.12,5.15]
[1757275742729,7.72,203.16,203.12,5.15]
[1757275742929,5.52449451,203.17,203.12,5.15]
[1757275743230,7.72,203.16,203.12,5.15]
[1757275744732,7.72,203.16,203.11,3.05318806]
[1757275745135,7.72,203.16,203.12,5.16]
[1757275745531,7.72,203.16,203.11,3.05318806]
[1757275746029,7.72,203.16,203.12,5.16]
[1757275746624,8.14,203.17,203.07,3.05318806]
[1757275746825,5.52449451,203.15,203.1,3.05318806]
[1757275747030,8.14,203.14,203.1,8.21318806]
[1757275747233,8.14,203.13,203.1,8.21318806]
[1757275748131,8.14,203.13,203.11,5.16]
[1757275750038,8.14,203.14,203.07,3.05318806]
[1757275751133,8.14,203.14,203.05,5.16]
[1757275751340,8.14,203.14,203.05,8.21318806]
[1757275755037,16.71768257,203.14,203.01,5.16]
[1757275755243,8.14,203.1,203.01,8.21318806]
[1757275755841,8.14,203.07,203.01,8.21318806]
[1757275756242,8.14,203.07,203.01,66.17318806]
[1757275757747,8.14,203.07,203.01,63.12]
[1757275758141,0.03144559,203.08,203.02,3.05318806]
[1757275758343,8.14,203.07,203.02,8.21318806]
[1757275758740,8.17144559,203.08,203.02,8.21318806]
[1757275761850,8.17144559,203.08,203.02,5.16]
[1757275762049,8.17144559,203.08,203.02,3.05318806]
[1757275762247,0.03144559,203.08,203.03,5.16]
[1757275762447,0.03144559,203.08,203.06,7.11628892]
[1757275763748,8.17144559,203.08,203.06,7.11628892]
[1757275765551,8.17144559,203.08,203.06,1.95628892]
[1757275767147,0.03144559,203.08,203.06,1.95628892]
[1757275767351,8.14,203.07,203.06,1.95628892]
[1757275768954,0.03144559,203.08,203.07,5.16]
[1757275769455,8.17144559,203.08,203.06,1.95628892]
[1757275769652,8.17144559,203.08,203.06,7.11628892]
[1757275769853,0.03144559,203.08,203.07,5.16]
[1757275771556,8.17144559,203.08,203.06,1.95628892]
[1757275772653,8.17144559,203.08,203.02,5.17]
[1757275772851,8.17144559,203.08,203.06,1.95628892]
[1757275774454,8.17144559,203.08,203.06,7.12628892]
[1757275775757,0.03144559,203.08,203.06,7.11628892]
[1757275776554,7.85144559,203.08,203.06,7.11628892]
[1757275776957,7.85144559,203.08,203.06,1.95628892]
[1757275778452,7.82,203.07,203.05,1.95628892]
[1757275778663,7.85144559,203.08,203.05,7.11628892]
[1757275778860,7.82,203.08,203.05,7.11628892]
[1757275779560,7.85148025,203.09,203.07,1.95628892]
[1757275780861,0.03148025,203.09,203.07,1.95628892]
[1757275781057,7.82,203.08,203.07,1.95628892]
[1757275782956,7.82,203.08,203.02,5.16]
[1757275783160,7.82,203.08,203.07,1.95628892]
[1757275784562,7.82,203.08,203.02,5.16]
[1757275784763,7.82,203.08,203.07,1.95628892]
[1757275787960,7.82,203.08,202.99,4.4332]
[1757275788166,7.82,203.08,203.06,1.95628892]
[1757275788466,0.03148025,203.09,203.06,1.95628892]
[1757275788659,7.82,203.08,203.06,1.95628892]
[1757275789662,0.03148025,203.09,203.06,1.95628892]
[1757275789870,7.82,203.08,203.06,1.95628892]
[1757275790370,7.82,203.08,203.07,1.95628892]
[1757275800668,0.03148025,203.09,203.08,5.16]
[1757275800967,0.03148025,203.09,203.07,7.11628892]
[1757275801172,7.85148025,203.09,203.07,7.11628892]
[1757275801869,7.82,203.08,203.07,7.11628892]
[1757275802473,7.82,203.08,203.07,1.95628892]
[1757275815583,5.55597476,203.09,203.01,55.76]
[1757275815781,8.07,203.08,203.05,1.95628892]
[1757275816284,5.55597476,203.09,203.05,1.95628892]
[1757275816680,8.07,203.08,203.05,1.95628892]
[1757275816977,5.55597476,203.09,203.05,1.95628892]
[1757275817675,8.07,203.08,203.05,1.95628892]
[1757275818279,13.59449451,203.08,203.05,1.95628892]
[1757275818482,13.59449451,203.08,203.0,5.17]
[1757275818483,13.59449451,203.06,203.0,5.17]
[1757275818685,13.59449451,203.06,203.02,1.95628892]
[1757275820791,8.07,203.05,203.02,1.95628892]
[1757275820983,5.52449451,203.06,203.02,1.95628892]
[1757275821286,8.07,203.05,203.02,1.95628892]
[1757275821480,5.52449451,203.06,203.02,1.95628892]
[1757275821886,8.07,203.05,203.02,1.95628892]
[1757275822081,5.52449451,203.06,203.02,1.95628892]
[1757275822388,8.07,203.06,203.02,1.95628892]
[1757275822588,5.52449451,203.07,203.02,1.95628892]
[1757275822887,8.07,203.06,203.02,1.95628892]
[1757275823186,5.52449451,203.07,203.02,1.95628892]
[1757275823583,8.07,203.06,203.02,1.95628892]
[1757275824286,8.07,203.06,203.0,5.17]
[1757275828191,5.52449451,203.07,202.98,5.17]
[1757275828391,8.07,203.06,202.98,8.22799624]
[1757275828590,13.59449451,203.06,202.98,8.22799624]
[1757275828984,0.03144907,203.04,202.98,3.05799624]
[1757275829184,8.07,203.03,202.98,3.05799624]
[1757275829382,8.07,203.03,202.98,8.22799624]
[1757275829882,8.07,203.03,202.97,8.22799624]
[1757275831490,8.07,203.03,202.97,3.05799624]
[1757275832590,8.07,203.03,202.97,8.22799624]
[1757275836494,7.79,203.03,202.95,8.22799624]
[1757275841993,7.79,203.03,202.95,5.17]
[1757275842188,7.79,203.03,202.95,8.22799624]
[1757275843296,7.79,203.03,202.98,3.05799624]
[1757275843499,7.79,203.03,202.99,5.17]
[1757275843694,0.03144907,203.04,202.99,5.17]
[1757275844502,0.03144907,203.04,202.98,105.05799624]
[1757275845097,0.03144907,203.04,202.99,5.17]
[1757275845704,7.82144907,203.04,202.99,5.17]
[1757275846002,0.03144907,203.04,202.98,105.05799624]
[1757275846202,7.79,203.03,203.0,8.22799624]
[1757275846504,7.79,203.03,203.01,5.17]
[1757275847305,7.79,203.03,203.0,3.05799624]
[1757275848001,0.03144907,203.04,203.0,3.05799624]
[1757275848807,7.79,203.03,203.0,8.22799624]
[1757275849005,0.03144907,203.04,203.0,8.22799624]
[1757275849406,7.79,203.03,203.0,8.22799624]
[1757275851407,7.79,203.03,203.01,5.17]
[1757275852108,0.03144907,203.04,203.0,3.05799624]
[1757275852308,0.03144907,203.04,203.0,8.22799624]
[1757275853008,7.79,203.03,203.0,8.22799624]
[1757275853510,0.03144907,203.04,203.0,8.22799624]
[1757275853707,7.79,203.03,203.0,8.22799624]
[1757275853905,7.79,203.03,203.0,3.05799624]
[1757275854106,7.79,203.03,203.01,5.17]
[1757275857408,0.03144907,203.04,203.01,5.17]
[1757275857807,7.82144907,203.04,203.0,3.05799624]
[1757275858111,7.82144907,203.04,203.01,5.17]
[1757275860313,7.79,203.03,203.01,5.17]
[1757275872314,0.03144907,203.04,202.99,128.78799624]
[1757275872515,8.03,203.03,202.99,128.78799624]
[1757275872816,0.03144907,203.04,202.99,128.78799624]
[1757275873015,8.03,203.03,203.0,5.17]
[1757275873209,0.03144907,203.04,203.0,5.17]
[1757275873408,8.03,203.03,203.0,5.17]
[1757275873608,5.55594358,203.04,203.0,5.17]
[1757275873810,8.03,203.03,203.0,5.17]
[1757275874208,8.03,203.03,202.99,120.56]
[1757275874616,8.03,203.03,202.99,125.73]
[1757275874820,5.55594358,203.04,202.99,125.73]
[1757275875016,8.03,203.03,202.99,125.73]
[1757275875216,5.55594358,203.04,202.99,125.73]
[1757275875923,8.03,203.03,202.99,125.73]
[1757275876117,5.55594358,203.04,202.99,125.73]
[1757275876421,8.03,203.03,202.98,120.52]
[1757275876723,5.55594358,203.04,202.98,120.52]
[1757275876922,8.03,203.03,202.98,120.52]
[1757275877122,5.55594358,203.04,202.98,120.52]
[1757275877325,5.52449451,203.03,202.98,120.52]
[1757275877522,8.03,203.02,202.95,3.05799624]
[1757275877822,8.03,203.01,202.95,3.05799624]
[1757275878023,5.52449451,203.02,202.95,123.57799624]
[1757275878224,8.03,203.01,202.95,123.57799624]
[1757275881627,13.55449451,203.01,202.95,123.57799624]
[1757275881824,5.52449451,203.01,202.95,123.57799624]
[1757275882224,8.03,203.0,202.95,128.74799624]
[1757275882524,5.52449451,203.01,202.95,123.57799624]
[1757275882927,8.03,202.99,202.96,5.17]
[1757275883728,8.03,202.99,202.95,123.57799624]
[1757275883929,8.03,202.99,202.96,5.17]
[1757275884629,8.03,202.99,202.95,123.57799624]
[1757275884833,0.0321803,203.0,202.95,123.57799624]
[1757275885032,8.0621803,203.0,202.96,5.17]
[1757275885225,8.0621803,203.0,202.95,123.57799624]
[1757275885929,8.0621803,203.0,202.96,5.17]
[1757275886125,8.0621803,203.0,202.95,123.57799624]
[1757275886326,8.0621803,203.0,202.97,1.95797036]
[1757275886522,8.0621803,203.0,202.98,5.17]
[1757275886731,8.03,202.99,202.97,1.95797036]
[1757275886932,8.03,202.99,202.97,7.12797036]
[1757275888831,0.0321803,203.0,202.97,1.95797036]
[1757275889537,0.0321803,203.0,202.98,5.17]
[1757275890234,8.0621803,203.0,202.98,5.17]
[1757275893236,8.03,202.99,202.96,36.46]
[1757275893436,8.03,202.99,202.98,1.95797036]
[1757275893637,8.03,202.99,202.98,7.12797036]
[1757275903040,0.0321803,203.0,202.99,5.17]
[1757275910646,0.0321803,203.0,202.91,5.17]
[1757275910843,7.54,202.99,202.96,7.12797036]
[1757275911048,7.54,202.99,202.97,5.17]
[1757275912146,0.0321803,203.0,202.99,5.17]
[1757275918244,7.5721803,203.0,202.91,42.05]
[1757275918451,7.5721803,203.0,202.94,7.12797036]
[1757275918650,13.09667481,203.0,202.94,7.12797036]
[1757275920350,5.52449451,202.99,202.94,7.12797036]
[1757275920752,7.54,202.98,202.94,7.12797036]
[1757275921353,5.52449451,202.99,202.94,7.12797036]
[1757275921856,7.54,202.98,202.94,7.12797036]
[1757275922154,13.06449451,202.98,202.94,7.12797036]
[1757275922750,7.54,202.97,202.94,7.12797036]
[1757275923256,5.52449451,202.99,202.96,1.95797036]
[1757275923452,5.55667481,203.0,202.98,1.95797036]
[1757275923751,1.95797036,203.07,202.98,1.95797036]
[1757275923752,13.06449451,203.01,202.99,5.17]
[1757275924056,13.09618429,203.01,202.99,5.17]
[1757275924451,7.54,203.0,202.98,7.12797036]
[1757275924651,7.54,203.0,202.93,5.17]
[1757275924852,7.54,203.0,202.98,1.95797036]
[1757275925155,5.55618429,203.01,202.98,1.95797036]
[1757275925354,8.17,203.0,202.98,1.95797036]
[1757275925654,13.69449451,203.0,202.98,1.95797036]
[1757275926249,8.17,202.99,202.94,1.95797036]
[1757275926454,5.52449451,202.98,202.94,1.95797036]
[1757275927150,8.17,202.97,202.94,1.95797036]
[1757275928451,5.52449451,202.98,202.92,5.17]
[1757275928654,5.52449451,202.98,202.94,1.95797036]
[1757275929057,8.17,202.97,202.94,1.95797036]
[1757275929651,5.56002395,202.98,202.94,1.95797036]
[1757275930360,8.17,202.97,202.94,1.95797036]
[1757275930557,5.56002395,202.98,202.94,1.95797036]
[1757275930952,8.17,202.97,202.94,1.95797036]
[1757275931158,5.56002395,202.98,202.94,1.95797036]
[1757275931459,8.17,202.97,202.94,1.95797036]
[1757275931658,8.17,202.97,202.96,1.95797036]
[1757275931862,5.56002395,202.98,202.96,1.95797036]
[1757275932064,0.03552944,202.98,202.96,1.95797036]
[1757275932362,0.03552944,202.98,202.96,7.12797036]
[1757275932565,0.03552944,202.98,202.97,5.17]
[1757275932867,0.03552944,202.98,202.96,1.95797036]
[1757275933257,0.03552944,202.98,202.96,7.12797036]
[1757275936763,8.20552944,202.98,202.92,5.17]
[1757275936973,13.73002395,202.98,202.92,7.12797036]
[1757275939562,8.17,202.97,202.94,1.95797036]
[1757275939762,0.03552944,202.98,202.95,5.17]
[1757275939974,8.20552944,202.98,202.96,7.12797036]
[1757275940266,8.20552944,202.98,202.96,1.95797036]
[1757275941666,8.17,202.97,202.94,1.95797036]
[1757275941962,8.17,202.97,202.94,7.12797036]
[1757275944474,0.03330028,202.98,202.94,7.12797036]
[1757275944475,0.03330028,202.98,202.94,1.95797036]
[1757275944665,8.17,202.97,202.94,1.95797036]
[1757275944865,0.03330028,202.98,202.94,1.95797036]
[1757275945265,8.17,202.97,202.94,1.95797036]
[1757275945462,8.17,202.97,202.91,5.17]
[1757275945665,5.55779479,202.98,202.92,1.95797036]
[1757275945862,8.17,202.97,202.92,1.95797036]
[1757275946066,5.55779479,202.98,202.92,1.95797036]
[1757275946471,8.17,202.97,202.9,5.17]
[1757275950975,8.17,202.97,202.85,8.23084319]
[1757275951174,8.17,202.95,202.85,43.83084319]
[1757275951574,5.52449451,202.96,202.85,43.83084319]
[1757275951774,8.20577366,202.92,202.85,43.83084319]
[1757275952773,8.20577366,202.92,202.85,8.23084319]
[1757275954279,8.20577366,202.92,202.85,5.17]
[1757275954478,8.20577366,202.92,202.85,8.23084319]
[1757275955072,8.20577366,202.92,202.85,5.17]
[1757275955271,8.20577366,202.92,202.85,8.23084319]
[1757275957875,0.03577366,202.92,202.82,69.67202006]
[1757275958079,7.47,202.91,202.82,69.67202006]
[1757275960273,7.47,202.91,202.82,5.16]
[1757275960473,12.99449451,202.91,202.82,5.16]
[1757275960670,7.47,202.89,202.82,5.16]
[1757275961278,0.03223912,202.88,202.82,5.16]
[1757275961476,7.47,202.87,202.82,5.16]
[1757275961676,0.03223912,202.88,202.82,5.16]
[1757275961876,7.47,202.87,202.79,3.06084319]
[1757275962280,7.47,202.87,202.79,8.22084319]
[1757275964186,7.47,202.87,202.79,5.16]
[1757275964387,7.47,202.87,202.81,5.16]
[1757275965086,0.03264083,202.86,202.81,5.16]
[1757275965382,0.03264083,202.86,202.8,3.06084319]
[1757275965783,0.03264083,202.86,202.81,5.16]
[1757275966086,0.03264083,202.86,202.8,3.06084319]
[1757275966384,0.03264083,202.86,202.81,5.16]
[1757275966586,0.03264083,202.86,202.8,3.06084319]
[1757275966889,0.03264083,202.86,202.81,5.16]
[1757275967091,0.03264083,202.86,202.8,3.06084319]
[1757275967288,0.03264083,202.86,202.81,5.16]
[1757275967492,0.03264083,202.86,202.8,8.22084319]
[1757275971694,0.03264083,202.86,202.8,5.16]
[1757275972292,0.03264083,202.86,202.8,8.22084319]
[1757275973090,0.03264083,202.86,202.8,3.06084319]
[1757275973984,0.03264083,202.86,202.81,5.16]
[1757275974496,0.03264083,202.86,202.8,3.06084319]
[1757275974691,0.03264083,202.86,202.81,5.16]
[1757275975094,0.03264083,202.86,202.8,3.06084319]
[1757275975291,0.03264083,202.86,202.81,5.16]
[1757275975695,0.03264083,202.86,202.8,3.06084319]
[1757275975891,0.03264083,202.86,202.81,5.16]
[1757275976190,0.03264083,202.86,202.8,3.06084319]
[1757275976391,0.03264083,202.86,202.81,5.16]
[1757275976592,0.03264083,202.86,202.8,3.06084319]
[1757275976791,0.03264083,202.86,202.81,5.16]
[1757275976991,0.03264083,202.86,202.8,3.06084319]
[1757275977192,0.03264083,202.86,202.81,5.16]
[1757275977399,0.03264083,202.86,202.8,3.06084319]
[1757275977793,0.03264083,202.86,202.84,5.16]
[1757275978092,0.03264083,202.86,202.83,3.06084319]
[1757275978299,0.03264083,202.86,202.84,5.16]
[1757275979093,0.03264083,202.86,202.83,3.06084319]
[1757275979398,0.03264083,202.86,202.81,5.16]
[1757275979599,0.03264083,202.86,202.83,5.16]
[1757275980299,0.03264083,202.86,202.85,3.06084319]
[1757275980498,0.03264083,202.86,202.85,8.22084319]
[1757275986105,0.03264083,202.86,202.85,5.16]
[1757275986402,0.03264083,202.86,202.85,8.22084319]
[1757275989308,0.03264083,202.86,202.85,5.16]
[1757276001618,0.03264083,202.86,202.78,5.17]
[1757276001818,0.03264083,202.86,202.8,5.17]
[1757276003320,7.57,202.85,202.79,125.55]
[1757276003914,7.57,202.85,202.8,120.48]
[1757276004119,0.03264083,202.86,202.8,120.48]
[1757276004624,7.57,202.85,202.8,120.48]
[1757276004921,0.03264083,202.86,202.8,120.48]
[1757276005120,7.57,202.85,202.8,120.48]
[1757276005520,0.03264083,202.86,202.8,120.48]
[1757276006315,7.57,202.85,202.8,125.65]
[1757276006621,0.03264083,202.86,202.8,120.48]
[1757276006820,0.03264083,202.86,202.8,125.65]
[1757276007017,7.57,202.85,202.8,125.65]
[1757276007223,0.03264083,202.86,202.8,120.48]
[1757276007425,7.60264083,202.86,202.8,125.65]
[1757276008321,0.03264083,202.86,202.81,1.9610699]
[1757276008521,7.57,202.85,202.82,5.17]
[1757276008923,0.03264083,202.86,202.82,5.17]
[1757276009222,7.57,202.85,202.82,5.17]
[1757276009522,0.03264083,202.86,202.82,5.17]
[1757276009722,7.57,202.85,202.82,5.17]
[1757276009927,7.60264083,202.86,202.8,125.65]
[1757276010116,0.03264083,202.86,202.81,7.1310699]
[1757276010423,7.57,202.85,202.81,7.1310699]
[1757276010921,0.03264083,202.86,202.81,7.1310699]
[1757276011522,7.57,202.85,202.81,7.1310699]
[1757276012525,0.03264083,202.86,202.81,7.1310699]
[1757276012721,7.57,202.85,202.81,7.1310699]
[1757276013127,0.03264083,202.86,202.81,5.17]
[1757276013320,7.57,202.85,202.76,4.4383]
[1757276013526,7.57,202.85,202.82,5.17]
[1757276014124,0.03264083,202.86,202.82,5.17]
[1757276014327,7.57,202.85,202.82,5.17]
[1757276014723,0.03264083,202.86,202.82,5.17]
[1757276014928,7.57,202.85,202.82,5.17]
[1757276015429,0.03264083,202.86,202.82,5.17]
[1757276015631,7.6,202.85,202.82,5.17]
[1757276015930,0.03264083,202.86,202.82,5.17]
[1757276016330,7.6,202.85,202.82,5.17]
[1757276017931,0.03264083,202.86,202.82,5.17]
[1757276018131,0.03264083,202.86,202.81,1.9610699]
[1757276018330,1.99371073,202.86,202.79,7.1110699]
[1757276018526,7.6,202.85,202.79,7.1110699]
[1757276028644,0.03264083,202.86,202.81,1.9610699]
[1757276028849,0.03264083,202.86,202.83,1.9610699]
[1757276029044,0.03264083,202.86,202.84,5.15]
[1757276029748,0.03264083,202.86,202.83,1.9610699]
[1757276029950,0.03264083,202.86,202.84,5.15]
[1757276030249,0.03264083,202.86,202.83,1.9610699]
[1757276030451,0.03264083,202.86,202.84,5.15]
[1757276030949,0.03264083,202.86,202.83,1.9610699]
[1757276031150,0.03264083,202.86,202.84,5.15]
[1757276031948,0.03264083,202.86,202.83,1.9610699]
[1757276033551,0.03264083,202.86,202.84,5.15]
[1757276033748,0.03264083,202.86,202.83,1.9610699]
[1757276034545,0.03264083,202.86,202.84,5.15]
[1757276034952,0.03264083,202.86,202.83,1.9610699]
[1757276035153,0.03264083,202.86,202.84,5.15]
[1757276036156,0.03264083,202.86,202.83,1.9610699]
[1757276036356,0.03264083,202.86,202.84,5.15]
[1757276037655,0.03264083,202.86,202.83,1.9610699]
[1757276038653,0.03264083,202.86,202.84,5.15]
[1757276038957,0.03264083,202.86,202.83,1.9610699]
[1757276039452,0.03264083,202.86,202.84,5.15]
[1757276039852,0.03264083,202.86,202.83,1.9610699]
[1757276040156,0.03264083,202.86,202.84,5.15]
[1757276040359,0.03264083,202.86,202.83,1.9610699]
[1757276040656,0.03264083,202.86,202.84,5.15]
[1757276040963,0.03264083,202.86,202.83,1.9610699]
[1757276041558,0.03264083,202.86,202.84,5.15]
[1757276041759,0.03264083,202.86,202.83,1.9610699]
[1757276042763,0.03264083,202.86,202.84,5.15]
[1757276042964,0.03264083,202.86,202.83,1.9610699]
[1757276043157,0.03264083,202.86,202.84,5.15]
[1757276043760,0.03264083,202.86,202.83,1.9610699]
[1757276043959,0.03264083,202.86,202.84,5.15]
[1757276044463,0.03264083,202.86,202.83,1.9610699]
[1757276044864,0.03264083,202.86,202.84,5.15]
[1757276045060,0.03264083,202.86,202.83,1.9610699]
[1757276045362,0.03264083,202.86,202.84,5.17]
[1757276045764,0.03264083,202.86,202.83,1.9610699]
[1757276046767,0.03264083,202.86,202.84,5.17]
[1757276047166,0.03264083,202.86,202.83,1.9610699]
[1757276048167,0.03264083,202.86,202.84,5.17]
[1757276048362,0.03264083,202.86,202.83,1.9610699]
[1757276048868,0.03264083,202.86,202.84,5.17]
[1757276049065,0.03264083,202.86,202.83,1.9610699]
[1757276049267,0.03264083,202.86,202.84,5.17]
[1757276050066,0.03264083,202.86,202.83,1.9610699]